[Event "*** Titled Tuesday Blitz"]
[Site "Chess.com"]
[Date "2020.10.27"]
[Round "10"]
[White "nitpicker"]
[Black "Nathan_Filgueiras"]
[Result "1/2-1/2"]
[WhiteElo "2258"]
[BlackElo "2423"]
[TimeControl "180+1"]
[EndTime "11:57:30 PDT"]
[Termination "Game drawn by repetition"]

1. d4 {[%clk 0:03:00.9]} 1... Nf6 {[%clk 0:02:58.9]} 2. c4 {[%clk 0:03:00.9]}
2... e6 {[%clk 0:02:58.8]} 3. g3 {[%clk 0:03:00.2]} 3... d5 {[%clk 0:02:57.9]}
4. Nf3 {[%clk 0:02:59.6]} 4... dxc4 {[%clk 0:02:56.2]} 5. Bg2 {[%clk 0:02:59.3]}
5... a6 {[%clk 0:02:54.3]} 6. O-O {[%clk 0:02:58.4]} 6... b5 {[%clk 0:02:52.6]}
7. Ne5 {[%clk 0:02:50.1]} 7... Nd5 {[%clk 0:02:51.7]} 8. b3 {[%clk 0:02:40.8]}
8... c3 {[%clk 0:02:42.6]} 9. e4 {[%clk 0:02:30.6]} 9... b4 {[%clk 0:02:42.4]}
10. exd5 {[%clk 0:02:28.6]} 10... exd5 {[%clk 0:02:43.3]} 11. a3 {[%clk
0:02:15.6]} 11... Bf5 {[%clk 0:02:19]} 12. Qf3 {[%clk 0:02:05.6]} 12... Be6
{[%clk 0:01:56.7]} 13. axb4 {[%clk 0:02:04.7]} 13... Bxb4 {[%clk 0:01:49.5]} 14.
Nxc3 {[%clk 0:02:03.7]} 14... O-O {[%clk 0:01:47.1]} 15. Nxd5 {[%clk 0:02:00.6]}
15... Bd6 {[%clk 0:01:12]} 16. Ne7+ {[%clk 0:01:53.8]} 16... Qxe7 {[%clk
0:01:09.5]} 17. Qxa8 {[%clk 0:01:52.6]} 17... Nd7 {[%clk 0:01:09.9]} 18. Qe4
{[%clk 0:01:39.2]} 18... Nf6 {[%clk 0:01:05.6]} 19. Nc6 {[%clk 0:01:15.8]} 19...
Qd7 {[%clk 0:00:59]} 20. Qe2 {[%clk 0:01:02.7]} 20... Bxb3 {[%clk 0:00:58]} 21.
Qxa6 {[%clk 0:00:54.6]} 21... Qe6 {[%clk 0:00:51.8]} 22. Ne5 {[%clk 0:00:36.8]}
22... Nd5 {[%clk 0:00:38.7]} 23. Qd3 {[%clk 0:00:30.7]} 23... Nb4 {[%clk
0:00:36.3]} 24. Qc3 {[%clk 0:00:24.4]} 24... Bd5 {[%clk 0:00:24]} 25. Ba3 {[%clk
0:00:19.8]} 25... Bxg2 {[%clk 0:00:19.1]} 26. Kxg2 {[%clk 0:00:19.8]} 26... Nd5
{[%clk 0:00:19.6]} 27. Qf3 {[%clk 0:00:17.8]} 27... f6 {[%clk 0:00:15.3]} 28.
Bxd6 {[%clk 0:00:16.4]} 28... cxd6 {[%clk 0:00:15.7]} 29. Nc6 {[%clk 0:00:15.7]}
29... Rc8 {[%clk 0:00:15.2]} 30. Rfe1 {[%clk 0:00:12]} 30... Qf7 {[%clk
0:00:13.7]} 31. Rac1 {[%clk 0:00:10.9]} 31... Kh8 {[%clk 0:00:09.7]} 32. Kg1
{[%clk 0:00:10.6]} 32... Nb6 {[%clk 0:00:09]} 33. d5 {[%clk 0:00:09.8]} 33...
Nxd5 {[%clk 0:00:07.5]} 34. Nd4 {[%clk 0:00:07.2]} 34... Rxc1 {[%clk 0:00:07]}
35. Rxc1 {[%clk 0:00:07.2]} 35... h5 {[%clk 0:00:07.3]} 36. Rc8+ {[%clk
0:00:07.2]} 36... Kh7 {[%clk 0:00:07.5]} 37. Qe4+ {[%clk 0:00:07.6]} 37... g6
{[%clk 0:00:07.5]} 38. Ne6 {[%clk 0:00:07.7]} 38... f5 {[%clk 0:00:07.4]} 39.
Nf8+ {[%clk 0:00:07.8]} 39... Kg7 {[%clk 0:00:07.2]} 40. Qe8 {[%clk 0:00:06.8]}
40... Nf6 {[%clk 0:00:06.9]} 41. Qxf7+ {[%clk 0:00:06.7]} 41... Kxf7 {[%clk
0:00:07.8]} 42. Nd7 {[%clk 0:00:06.2]} 42... Nxd7 {[%clk 0:00:06.5]} 43. Rc6
{[%clk 0:00:06.8]} 43... Ke6 {[%clk 0:00:06.8]} 44. Rc1 {[%clk 0:00:07.3]} 44...
d5 {[%clk 0:00:07.2]} 45. Re1+ {[%clk 0:00:08.2]} 45... Ne5 {[%clk 0:00:07.6]}
46. Kg2 {[%clk 0:00:08.7]} 46... Kd6 {[%clk 0:00:08.2]} 47. f4 {[%clk
0:00:08.9]} 47... Ng4 {[%clk 0:00:08.3]} 48. h3 {[%clk 0:00:09.3]} 48... Nf6
{[%clk 0:00:08]} 49. Kf3 {[%clk 0:00:09.9]} 49... Ne4 {[%clk 0:00:08.6]} 50. Rd1
{[%clk 0:00:09.8]} 50... Kc5 {[%clk 0:00:08.8]} 51. g4 {[%clk 0:00:10]} 51...
hxg4+ {[%clk 0:00:08.5]} 52. hxg4 {[%clk 0:00:10.6]} 52... d4 {[%clk 0:00:09.4]}
53. gxf5 {[%clk 0:00:09.4]} 53... gxf5 {[%clk 0:00:10.3]} 54. Rh1 {[%clk
0:00:08.5]} 54... d3 {[%clk 0:00:09.9]} 55. Ke3 {[%clk 0:00:08.8]} 55... Kc4
{[%clk 0:00:09.6]} 56. Rc1+ {[%clk 0:00:09.4]} 56... Kd5 {[%clk 0:00:08.6]} 57.
Kxd3 {[%clk 0:00:09.5]} 57... Nc5+ {[%clk 0:00:08.9]} 58. Ke3 {[%clk 0:00:09.7]}
58... Ne4 {[%clk 0:00:09.3]} 59. Rg1 {[%clk 0:00:09.1]} 59... Nd6 {[%clk
0:00:08.9]} 60. Rg8 {[%clk 0:00:09]} 60... Nc4+ {[%clk 0:00:09.3]} 61. Kf3
{[%clk 0:00:08.3]} 61... Nd2+ {[%clk 0:00:09.2]} 62. Ke3 {[%clk 0:00:08.4]}
62... Nc4+ {[%clk 0:00:09.7]} 63. Kf3 {[%clk 0:00:08.5]} 63... Nd2+ {[%clk
0:00:09.9]} 64. Kg3 {[%clk 0:00:08.6]} 64... Ne4+ {[%clk 0:00:09.9]} 65. Kf3
{[%clk 0:00:06.7]} 65... Nd2+ {[%clk 0:00:09.9]} 1/2-1/2

[Event "*** Titled Tuesday Blitz"]
[Site "Chess.com"]
[Date "2020.10.27"]
[Round "10"]
[White "m_ezat"]
[Black "KaterynaLagno"]
[Result "1-0"]
[WhiteElo "2518"]
[BlackElo "2659"]
[TimeControl "180+1"]
[EndTime "11:57:33 PDT"]
[Termination "m_ezat won on time"]

1. d4 {[%clk 0:03:00.9]} 1... Nf6 {[%clk 0:02:59.6]} 2. c4 {[%clk 0:02:59.3]}
2... g6 {[%clk 0:02:59.9]} 3. Nc3 {[%clk 0:02:58.8]} 3... d5 {[%clk 0:03:00]} 4.
Bg5 {[%clk 0:02:57.5]} 4... Ne4 {[%clk 0:02:54.5]} 5. cxd5 {[%clk 0:02:57.1]}
5... Nxg5 {[%clk 0:02:49.8]} 6. h4 {[%clk 0:02:57.4]} 6... Ne4 {[%clk
0:02:31.8]} 7. Nxe4 {[%clk 0:02:56.5]} 7... Qxd5 {[%clk 0:02:32.5]} 8. Qd3
{[%clk 0:02:56.8]} 8... Bg7 {[%clk 0:02:30.8]} 9. Nf3 {[%clk 0:02:56.6]} 9...
Nc6 {[%clk 0:02:29.9]} 10. Nc3 {[%clk 0:02:56.6]} 10... Qa5 {[%clk 0:02:26.1]}
11. e3 {[%clk 0:02:57.1]} 11... Bf5 {[%clk 0:02:24.6]} 12. Qb5 {[%clk
0:02:56.5]} 12... Qxb5 {[%clk 0:02:20.4]} 13. Bxb5 {[%clk 0:02:55.4]} 13... Bd7
{[%clk 0:02:17.8]} 14. h5 {[%clk 0:02:51.8]} 14... gxh5 {[%clk 0:02:14.9]} 15.
Rxh5 {[%clk 0:02:50.1]} 15... h6 {[%clk 0:02:15.2]} 16. Ke2 {[%clk 0:02:41]}
16... a6 {[%clk 0:02:14.9]} 17. Ba4 {[%clk 0:02:38.5]} 17... O-O-O {[%clk
0:02:08.8]} 18. Rah1 {[%clk 0:02:35.6]} 18... e6 {[%clk 0:01:55.3]} 19. a3
{[%clk 0:02:24]} 19... b5 {[%clk 0:01:51.6]} 20. Bc2 {[%clk 0:02:18.7]} 20...
Na5 {[%clk 0:01:47.5]} 21. Ne4 {[%clk 0:02:12.9]} 21... Nc4 {[%clk 0:01:43.8]}
22. Rb1 {[%clk 0:01:54.5]} 22... Bc6 {[%clk 0:01:42.3]} 23. Nc5 {[%clk 0:01:48]}
23... a5 {[%clk 0:01:40.7]} 24. a4 {[%clk 0:01:43.2]} 24... Nb6 {[%clk
0:01:33.9]} 25. axb5 {[%clk 0:01:41.1]} 25... Bxb5+ {[%clk 0:01:34.8]} 26. Bd3
{[%clk 0:01:40.3]} 26... Bc6 {[%clk 0:01:31.3]} 27. b4 {[%clk 0:01:38.6]} 27...
a4 {[%clk 0:01:24.2]} 28. b5 {[%clk 0:01:33.8]} 28... Ba8 {[%clk 0:01:18.1]} 29.
Ra1 {[%clk 0:01:33.2]} 29... Rd5 {[%clk 0:00:57.8]} 30. Rxd5 {[%clk 0:01:21.1]}
30... Bxd5 {[%clk 0:00:58.7]} 31. Nxa4 {[%clk 0:01:15.7]} 31... Nxa4 {[%clk
0:00:56.9]} 32. Rxa4 {[%clk 0:01:14.8]} 32... Bb7 {[%clk 0:00:37.2]} 33. Ra1
{[%clk 0:01:04.1]} 33... Bf6 {[%clk 0:00:35.4]} 34. Rh1 {[%clk 0:01:03.2]} 34...
Kd7 {[%clk 0:00:32.1]} 35. Rh2 {[%clk 0:00:55.5]} 35... Bg7 {[%clk 0:00:31.3]}
36. Nd2 {[%clk 0:00:49.8]} 36... Ra8 {[%clk 0:00:30.6]} 37. Be4 {[%clk 0:00:50]}
37... Bxe4 {[%clk 0:00:29.3]} 38. Nxe4 {[%clk 0:00:49.6]} 38... Ra2+ {[%clk
0:00:30.2]} 39. Kf3 {[%clk 0:00:47.4]} 39... Rb2 {[%clk 0:00:31.1]} 40. Rh5
{[%clk 0:00:40.6]} 40... f5 {[%clk 0:00:31.1]} 41. Nc5+ {[%clk 0:00:40]} 41...
Kd6 {[%clk 0:00:31.5]} 42. g4 {[%clk 0:00:31.1]} 42... fxg4+ {[%clk 0:00:31.1]}
43. Kxg4 {[%clk 0:00:30.3]} 43... Ke7 {[%clk 0:00:27.9]} 44. Ne4 {[%clk
0:00:27.1]} 44... Kd7 {[%clk 0:00:24.4]} 45. Kf3 {[%clk 0:00:22.8]} 45... Bf8
{[%clk 0:00:21.8]} 46. Re5 {[%clk 0:00:18.7]} 46... Rb1 {[%clk 0:00:19.6]} 47.
Rh5 {[%clk 0:00:18]} 47... Rb2 {[%clk 0:00:19.3]} 48. Nf6+ {[%clk 0:00:13.5]}
48... Ke7 {[%clk 0:00:17.5]} 49. Ng4 {[%clk 0:00:14]} 49... Kd6 {[%clk
0:00:16.7]} 50. Nf6 {[%clk 0:00:08.3]} 50... Bg7 {[%clk 0:00:14.8]} 51. Ne8+
{[%clk 0:00:08.1]} 51... Ke7 {[%clk 0:00:14]} 52. Nxg7 {[%clk 0:00:08.7]} 52...
Kf7 {[%clk 0:00:14.9]} 53. Nxe6 {[%clk 0:00:08.4]} 53... Kxe6 {[%clk 0:00:15.8]}
54. Rxh6+ {[%clk 0:00:08.8]} 54... Kd5 {[%clk 0:00:16.7]} 55. Rc6 {[%clk
0:00:07.7]} 55... Rxb5 {[%clk 0:00:15.3]} 56. Rxc7 {[%clk 0:00:08.2]} 56... Kd6
{[%clk 0:00:16.2]} 57. Rf7 {[%clk 0:00:08]} 57... Rf5+ {[%clk 0:00:17]} 58. Rxf5
{[%clk 0:00:06.3]} 1-0

[Event "*** Titled Tuesday Blitz"]
[Site "Chess.com"]
[Date "2020.10.27"]
[Round "10"]
[White "verdest"]
[Black "WPWPWP-2015"]
[Result "1-0"]
[WhiteElo "2628"]
[BlackElo "2482"]
[TimeControl "180+1"]
[EndTime "11:57:34 PDT"]
[Termination "verdest won on time"]

1. d4 {[%clk 0:03:00.9]} 1... Nf6 {[%clk 0:02:59.1]} 2. c4 {[%clk 0:03:00.3]}
2... e6 {[%clk 0:02:59.7]} 3. Nf3 {[%clk 0:02:59.6]} 3... b6 {[%clk 0:02:58.8]}
4. g3 {[%clk 0:02:58.1]} 4... Ba6 {[%clk 0:02:58.3]} 5. b3 {[%clk 0:02:54.9]}
5... Bb4+ {[%clk 0:02:57.7]} 6. Bd2 {[%clk 0:02:54.6]} 6... Be7 {[%clk
0:02:58.2]} 7. Nc3 {[%clk 0:02:54.3]} 7... d5 {[%clk 0:02:55.7]} 8. cxd5 {[%clk
0:02:53.8]} 8... exd5 {[%clk 0:02:53.4]} 9. Bg2 {[%clk 0:02:53.6]} 9... O-O
{[%clk 0:02:52.9]} 10. O-O {[%clk 0:02:51.7]} 10... c6 {[%clk 0:02:52.5]} 11.
Bc1 {[%clk 0:02:48.9]} 11... Bd6 {[%clk 0:02:48.5]} 12. Bb2 {[%clk 0:02:46.8]}
12... Re8 {[%clk 0:02:46.6]} 13. Rc1 {[%clk 0:02:42.7]} 13... Nbd7 {[%clk
0:02:45.1]} 14. Re1 {[%clk 0:02:39.4]} 14... Rc8 {[%clk 0:02:40.5]} 15. e3
{[%clk 0:02:27.1]} 15... h6 {[%clk 0:02:33.1]} 16. a3 {[%clk 0:02:16.4]} 16...
Nf8 {[%clk 0:02:24]} 17. b4 {[%clk 0:02:09.8]} 17... Bc4 {[%clk 0:02:16.5]} 18.
Ne2 {[%clk 0:02:00.6]} 18... Ne4 {[%clk 0:02:13.1]} 19. Nf4 {[%clk 0:01:56.9]}
19... a5 {[%clk 0:02:09.9]} 20. bxa5 {[%clk 0:01:52.7]} 20... bxa5 {[%clk
0:02:10.8]} 21. Nd3 {[%clk 0:01:50.2]} 21... Qb6 {[%clk 0:02:04.4]} 22. Rb1
{[%clk 0:01:25]} 22... Ba2 {[%clk 0:02:00.7]} 23. Rc1 {[%clk 0:01:16.5]} 23...
Bb3 {[%clk 0:02:00]} 24. Qe2 {[%clk 0:01:15.1]} 24... Bc4 {[%clk 0:01:59.7]} 25.
Rb1 {[%clk 0:01:08.7]} 25... Qa6 {[%clk 0:01:50.7]} 26. Bf1 {[%clk 0:01:03]}
26... Rb8 {[%clk 0:01:48.6]} 27. Qc2 {[%clk 0:00:58.3]} 27... Bb3 {[%clk
0:01:40]} 28. Qc1 {[%clk 0:00:53.7]} 28... Bc4 {[%clk 0:01:37.9]} 29. Nfe5
{[%clk 0:00:47.4]} 29... Rb3 {[%clk 0:01:28.3]} 30. Nxc4 {[%clk 0:00:44.1]}
30... dxc4 {[%clk 0:01:29.2]} 31. Nc5 {[%clk 0:00:35.6]} 31... Nxc5 {[%clk
0:00:48.9]} 32. dxc5 {[%clk 0:00:35.2]} 32... Rxb2 {[%clk 0:00:20.9]} 33. Rxb2
{[%clk 0:00:31.4]} 33... Bxc5 {[%clk 0:00:20.7]} 34. Bxc4 {[%clk 0:00:31.1]}
34... Qa7 {[%clk 0:00:20.8]} 35. Rc2 {[%clk 0:00:27.9]} 35... Bd6 {[%clk
0:00:17.6]} 36. Ba2 {[%clk 0:00:26.3]} 36... c5 {[%clk 0:00:17]} 37. Rd1 {[%clk
0:00:24.7]} 37... Be7 {[%clk 0:00:17.3]} 38. Rcd2 {[%clk 0:00:23.5]} 38... Qb6
{[%clk 0:00:13.9]} 39. Qc4 {[%clk 0:00:23.3]} 39... Qf6 {[%clk 0:00:13.1]} 40.
Rd5 {[%clk 0:00:19]} 40... g6 {[%clk 0:00:12.8]} 41. h4 {[%clk 0:00:17.6]} 41...
h5 {[%clk 0:00:12.8]} 42. Qf4 {[%clk 0:00:07.5]} 42... Qb2 {[%clk 0:00:11.3]}
43. R5d2 {[%clk 0:00:05.8]} 43... Qg7 {[%clk 0:00:10.8]} 44. Rc2 {[%clk
0:00:04.6]} 44... a4 {[%clk 0:00:09.9]} 45. Qxa4 {[%clk 0:00:04.3]} 45... Rc8
{[%clk 0:00:08.7]} 46. Qc4 {[%clk 0:00:04.5]} 46... Ne6 {[%clk 0:00:07.9]} 47.
a4 {[%clk 0:00:04.4]} 47... Qf6 {[%clk 0:00:07.1]} 48. a5 {[%clk 0:00:04.5]}
48... Nf8 {[%clk 0:00:06.3]} 49. a6 {[%clk 0:00:04.8]} 49... Ra8 {[%clk
0:00:06.5]} 50. Bb3 {[%clk 0:00:04.4]} 50... Rxa6 {[%clk 0:00:06.6]} 51. Rd5
{[%clk 0:00:03.8]} 51... Rb6 {[%clk 0:00:06.5]} 52. Kg2 {[%clk 0:00:03.6]} 52...
Rb4 {[%clk 0:00:06.6]} 53. Qc3 {[%clk 0:00:03]} 53... Qc6 {[%clk 0:00:05.8]} 54.
e4 {[%clk 0:00:02.2]} 54... c4 {[%clk 0:00:05.2]} 55. Bxc4 {[%clk 0:00:01.8]}
55... Ne6 {[%clk 0:00:04.2]} 56. Rd3 {[%clk 0:00:01.6]} 56... Qxe4+ {[%clk
0:00:02.7]} 57. f3 {[%clk 0:00:02.1]} 57... Qf5 {[%clk 0:00:01]} 58. Bxe6 {[%clk
0:00:02.3]} 1-0

[Event "*** Titled Tuesday Blitz"]
[Site "Chess.com"]
[Date "2020.10.27"]
[Round "10"]
[White "Ginger_GM"]
[Black "maciek_92"]
[Result "1/2-1/2"]
[WhiteElo "2604"]
[BlackElo "2717"]
[TimeControl "180+1"]
[EndTime "11:57:51 PDT"]
[Termination "Game drawn by stalemate"]

1. e4 {[%clk 0:03:00.9]} 1... c5 {[%clk 0:02:59.7]} 2. b4 {[%clk 0:02:57.1]}
2... cxb4 {[%clk 0:02:56.9]} 3. a3 {[%clk 0:02:54.5]} 3... d5 {[%clk 0:02:55]}
4. exd5 {[%clk 0:02:52.3]} 4... Qxd5 {[%clk 0:02:54.8]} 5. Nf3 {[%clk
0:02:46.5]} 5... e5 {[%clk 0:02:49.8]} 6. c4 {[%clk 0:02:38.3]} 6... Qe6 {[%clk
0:02:36.4]} 7. d4 {[%clk 0:02:36.8]} 7... exd4+ {[%clk 0:02:35.7]} 8. Be2 {[%clk
0:02:36.9]} 8... Nc6 {[%clk 0:02:31.9]} 9. O-O {[%clk 0:02:36]} 9... Nf6 {[%clk
0:02:18.6]} 10. Re1 {[%clk 0:02:28.3]} 10... Be7 {[%clk 0:02:11.4]} 11. Bd3
{[%clk 0:02:16.9]} 11... Qd7 {[%clk 0:02:04.8]} 12. axb4 {[%clk 0:02:13.9]}
12... Nxb4 {[%clk 0:01:46.2]} 13. Ne5 {[%clk 0:02:00]} 13... Qc7 {[%clk
0:01:28.9]} 14. Qa4+ {[%clk 0:01:46.9]} 14... Kf8 {[%clk 0:01:12.4]} 15. Ba3
{[%clk 0:01:38.5]} 15... Nxd3 {[%clk 0:01:06.3]} 16. Nxd3 {[%clk 0:01:28.6]}
16... Be6 {[%clk 0:01:03.7]} 17. Bxe7+ {[%clk 0:01:07.2]} 17... Qxe7 {[%clk
0:01:03.5]} 18. Na3 {[%clk 0:01:07.8]} 18... g6 {[%clk 0:00:57.3]} 19. Nb5
{[%clk 0:00:33.5]} 19... Rd8 {[%clk 0:00:51]} 20. Qxa7 {[%clk 0:00:30.3]} 20...
Kg7 {[%clk 0:00:46.9]} 21. Nxd4 {[%clk 0:00:30.2]} 21... Rd6 {[%clk 0:00:24.6]}
22. Nf4 {[%clk 0:00:21]} 22... Rhd8 {[%clk 0:00:20.6]} 23. Ndxe6+ {[%clk
0:00:19.7]} 23... fxe6 {[%clk 0:00:21.5]} 24. Qe3 {[%clk 0:00:19.4]} 24... Kf7
{[%clk 0:00:19.8]} 25. h3 {[%clk 0:00:19.3]} 25... g5 {[%clk 0:00:11.6]} 26. Ne2
{[%clk 0:00:16.4]} 26... h6 {[%clk 0:00:12.1]} 27. Rab1 {[%clk 0:00:15.6]} 27...
R8d7 {[%clk 0:00:12.1]} 28. Ng3 {[%clk 0:00:15.7]} 28... Rd3 {[%clk 0:00:11.5]}
29. Qe2 {[%clk 0:00:16]} 29... R3d4 {[%clk 0:00:09.1]} 30. Nh5 {[%clk
0:00:15.7]} 30... Re4 {[%clk 0:00:02.7]} 31. Qf3 {[%clk 0:00:12.1]} 31... Rxe1+
{[%clk 0:00:03]} 32. Rxe1 {[%clk 0:00:12.6]} 32... Kg6 {[%clk 0:00:03.6]} 33.
Nxf6 {[%clk 0:00:10.9]} 33... Qxf6 {[%clk 0:00:04.5]} 34. Qe4+ {[%clk 0:00:07]}
34... Kg7 {[%clk 0:00:04.9]} 35. Qxe6 {[%clk 0:00:06.9]} 35... Qxe6 {[%clk
0:00:05.3]} 36. Rxe6 {[%clk 0:00:07.7]} 36... Rc7 {[%clk 0:00:05.7]} 37. Rb6
{[%clk 0:00:07.6]} 37... Rxc4 {[%clk 0:00:05.6]} 38. Rxb7+ {[%clk 0:00:07.8]}
38... Kg6 {[%clk 0:00:06.3]} 39. Rb6+ {[%clk 0:00:08.7]} 39... Kg7 {[%clk
0:00:06.9]} 40. g3 {[%clk 0:00:09.1]} 40... Rc3 {[%clk 0:00:07.3]} 41. Kg2
{[%clk 0:00:09.5]} 41... Rc4 {[%clk 0:00:07.6]} 42. Rd6 {[%clk 0:00:09.8]} 42...
Rb4 {[%clk 0:00:07.9]} 43. Kf3 {[%clk 0:00:09.2]} 43... Rc4 {[%clk 0:00:08.3]}
44. Re6 {[%clk 0:00:08.2]} 44... Rb4 {[%clk 0:00:08.6]} 45. Re4 {[%clk
0:00:08.8]} 45... Rb3+ {[%clk 0:00:08.9]} 46. Kg4 {[%clk 0:00:08.6]} 46... Rb2
{[%clk 0:00:07.4]} 47. f3 {[%clk 0:00:07.4]} 47... Kf6 {[%clk 0:00:06.2]} 48.
Rc4 {[%clk 0:00:06.7]} 48... Rb3 {[%clk 0:00:03.9]} 49. Rc6+ {[%clk 0:00:06.3]}
49... Kg7 {[%clk 0:00:04.5]} 50. f4 {[%clk 0:00:05.8]} 50... gxf4 {[%clk
0:00:04.6]} 51. gxf4 {[%clk 0:00:06.3]} 51... Rb5 {[%clk 0:00:04.4]} 52. h4
{[%clk 0:00:05.5]} 52... h5+ {[%clk 0:00:04.1]} 53. Kf3 {[%clk 0:00:05.1]} 53...
Kf7 {[%clk 0:00:04.1]} 54. Rc4 {[%clk 0:00:03.2]} 54... Kf6 {[%clk 0:00:04]} 55.
Ke4 {[%clk 0:00:03.7]} 55... Rb1 {[%clk 0:00:03.7]} 56. Rc6+ {[%clk 0:00:03.9]}
56... Kf7 {[%clk 0:00:04.2]} 57. Rc5 {[%clk 0:00:04.1]} 57... Kg6 {[%clk
0:00:02.1]} 58. Rg5+ {[%clk 0:00:03.6]} 58... Kh6 {[%clk 0:00:02.4]} 59. f5
{[%clk 0:00:04.1]} 59... Rb8 {[%clk 0:00:03.3]} 60. f6 {[%clk 0:00:03.9]} 60...
Rb1 {[%clk 0:00:02.3]} 61. f7 {[%clk 0:00:03]} 61... Re1+ {[%clk 0:00:02.6]} 62.
Kf5 {[%clk 0:00:02.6]} 62... Kh7 {[%clk 0:00:02]} 63. Kf6 {[%clk 0:00:02.6]}
63... Rf1+ {[%clk 0:00:02]} 64. Ke7 {[%clk 0:00:01.3]} 64... Re1+ {[%clk
0:00:02.7]} 65. Kf6 {[%clk 0:00:01.6]} 65... Rf1+ {[%clk 0:00:03.3]} 66. Rf5
{[%clk 0:00:02.5]} 66... Rxf5+ {[%clk 0:00:03.3]} 67. Kxf5 {[%clk 0:00:02.9]}
67... Kg7 {[%clk 0:00:04.2]} 68. Ke6 {[%clk 0:00:03.8]} 68... Kf8 {[%clk
0:00:05.1]} 69. Kf6 {[%clk 0:00:03.5]} 1/2-1/2

[Event "*** Titled Tuesday Blitz"]
[Site "Chess.com"]
[Date "2020.10.27"]
[Round "10"]
[White "exoticprincess"]
[Black "Sibelephant"]
[Result "1/2-1/2"]
[WhiteElo "2873"]
[BlackElo "3076"]
[TimeControl "180+1"]
[EndTime "11:57:52 PDT"]
[Termination "Game drawn - insufficient material"]

1. d4 {[%clk 0:03:00.9]} 1... Nf6 {[%clk 0:03:00]} 2. c4 {[%clk 0:03:00.3]} 2...
g6 {[%clk 0:03:00.4]} 3. g3 {[%clk 0:02:58.9]} 3... c6 {[%clk 0:02:59.1]} 4. d5
{[%clk 0:02:57.1]} 4... cxd5 {[%clk 0:02:47.4]} 5. cxd5 {[%clk 0:02:57.3]} 5...
Bg7 {[%clk 0:02:35.5]} 6. Bg2 {[%clk 0:02:57.3]} 6... O-O {[%clk 0:02:35.2]} 7.
Nc3 {[%clk 0:02:57.5]} 7... d6 {[%clk 0:02:35.1]} 8. Nf3 {[%clk 0:02:57.6]} 8...
Na6 {[%clk 0:02:19.1]} 9. O-O {[%clk 0:02:57.3]} 9... Bd7 {[%clk 0:02:19.5]} 10.
Be3 {[%clk 0:02:56.1]} 10... Qa5 {[%clk 0:02:17.3]} 11. Bd4 {[%clk 0:02:56.2]}
11... Nc5 {[%clk 0:02:00.8]} 12. Nd2 {[%clk 0:02:34.9]} 12... Rfc8 {[%clk
0:01:35.8]} 13. Nb3 {[%clk 0:02:27.9]} 13... Nxb3 {[%clk 0:01:30.7]} 14. axb3
{[%clk 0:02:27.7]} 14... Qb4 {[%clk 0:01:26.4]} 15. Bh3 {[%clk 0:02:00.8]} 15...
Bxh3 {[%clk 0:01:25.1]} 16. Ra4 {[%clk 0:02:00.9]} 16... Qxa4 {[%clk 0:01:05.9]}
17. bxa4 {[%clk 0:02:01.8]} 17... Bxf1 {[%clk 0:01:06]} 18. Kxf1 {[%clk
0:02:02.7]} 18... Rc4 {[%clk 0:00:42]} 19. Kg2 {[%clk 0:01:52]} 19... a6 {[%clk
0:00:31]} 20. e3 {[%clk 0:01:47.2]} 20... Nd7 {[%clk 0:00:28.6]} 21. Qb3 {[%clk
0:01:42.8]} 21... Rc7 {[%clk 0:00:28.3]} 22. a5 {[%clk 0:01:37.4]} 22... Bxd4
{[%clk 0:00:25]} 23. exd4 {[%clk 0:01:37.2]} 23... b5 {[%clk 0:00:21.4]} 24.
axb6 {[%clk 0:01:34]} 24... Rb7 {[%clk 0:00:21.6]} 25. Qa4 {[%clk 0:01:24.3]}
25... Nxb6 {[%clk 0:00:20.7]} 26. Qc6 {[%clk 0:01:24.5]} 26... Rab8 {[%clk
0:00:20.4]} 27. h4 {[%clk 0:01:23]} 27... Nd7 {[%clk 0:00:19.8]} 28. h5 {[%clk
0:01:21.1]} 28... gxh5 {[%clk 0:00:17.2]} 29. Ne2 {[%clk 0:01:17.9]} 29... Nf6
{[%clk 0:00:16.3]} 30. Nf4 {[%clk 0:01:11.9]} 30... Rxb2 {[%clk 0:00:16.2]} 31.
Qxa6 {[%clk 0:01:12.4]} 31... Ne4 {[%clk 0:00:12.5]} 32. Nd3 {[%clk 0:01:09.9]}
32... Rd2 {[%clk 0:00:11.7]} 33. Qa7 {[%clk 0:01:10.2]} 33... Re8 {[%clk
0:00:07.4]} 34. Qd7 {[%clk 0:01:10.2]} 34... Kf8 {[%clk 0:00:07.6]} 35. Qf5
{[%clk 0:01:10.6]} 35... Nf6 {[%clk 0:00:07.6]} 36. Nf4 {[%clk 0:00:52.5]} 36...
Rxd4 {[%clk 0:00:07.4]} 37. Qg5 {[%clk 0:00:51.7]} 37... Re4 {[%clk 0:00:05.1]}
38. Nxh5 {[%clk 0:00:33.8]} 38... Nxh5 {[%clk 0:00:06]} 39. Qxh5 {[%clk
0:00:34.7]} 39... Kg7 {[%clk 0:00:03.5]} 40. Qg5+ {[%clk 0:00:34.9]} 40... Kf8
{[%clk 0:00:03.1]} 41. Qf5 {[%clk 0:00:35.8]} 41... Ra4 {[%clk 0:00:01.9]} 42.
Qxh7 {[%clk 0:00:36]} 42... f6 {[%clk 0:00:02.3]} 43. Qh8+ {[%clk 0:00:34.8]}
43... Kf7 {[%clk 0:00:02.2]} 44. Qh5+ {[%clk 0:00:35.7]} 44... Kf8 {[%clk
0:00:02.8]} 45. f4 {[%clk 0:00:32.1]} 45... Rd4 {[%clk 0:00:02.7]} 46. Kf3
{[%clk 0:00:30.3]} 46... Rc4 {[%clk 0:00:03]} 47. Kg4 {[%clk 0:00:30.3]} 47...
Rc5 {[%clk 0:00:03.4]} 48. Qh8+ {[%clk 0:00:23.4]} 48... Kf7 {[%clk 0:00:03.8]}
49. Qh7+ {[%clk 0:00:24]} 49... Kf8 {[%clk 0:00:04.4]} 50. Kf5 {[%clk
0:00:24.4]} 50... Rc3 {[%clk 0:00:03.8]} 51. g4 {[%clk 0:00:23.1]} 51... Rec8
{[%clk 0:00:02.5]} 52. Qh8+ {[%clk 0:00:18.5]} 52... Kf7 {[%clk 0:00:02.8]} 53.
Qh5+ {[%clk 0:00:18.7]} 53... Kg7 {[%clk 0:00:03.2]} 54. g5 {[%clk 0:00:15.6]}
54... fxg5 {[%clk 0:00:04.1]} 55. Qxg5+ {[%clk 0:00:16]} 55... Kf7 {[%clk
0:00:04.4]} 56. Qg6+ {[%clk 0:00:15.6]} 56... Kf8 {[%clk 0:00:05]} 57. Qh5
{[%clk 0:00:13.7]} 57... Kg7 {[%clk 0:00:04.8]} 58. Ke6 {[%clk 0:00:11.7]} 58...
Re3+ {[%clk 0:00:04.4]} 59. Kd7 {[%clk 0:00:12.1]} 59... Rcc3 {[%clk 0:00:04.9]}
60. Qg5+ {[%clk 0:00:12]} 60... Kf7 {[%clk 0:00:04.4]} 61. f5 {[%clk 0:00:12]}
61... Rcd3 {[%clk 0:00:03]} 62. Qg6+ {[%clk 0:00:11.9]} 62... Kf8 {[%clk
0:00:03.3]} 63. Qh6+ {[%clk 0:00:12.1]} 63... Kf7 {[%clk 0:00:03.6]} 64. Qg6+
{[%clk 0:00:13]} 64... Kf8 {[%clk 0:00:04.1]} 65. f6 {[%clk 0:00:13.3]} 65...
exf6 {[%clk 0:00:05]} 66. Qxf6+ {[%clk 0:00:14.2]} 66... Kg8 {[%clk 0:00:05.7]}
67. Kxd6 {[%clk 0:00:14.1]} 67... Rg3 {[%clk 0:00:04.4]} 68. Kc6 {[%clk
0:00:13.6]} 68... Kh7 {[%clk 0:00:03.6]} 69. d6 {[%clk 0:00:12.8]} 69... Rxd6+
{[%clk 0:00:03.7]} 70. Kxd6 {[%clk 0:00:11.6]} 70... Rg6 {[%clk 0:00:04.3]} 71.
Qxg6+ {[%clk 0:00:11.9]} 71... Kxg6 {[%clk 0:00:05.2]} 1/2-1/2